fUST/lending_fUST_20240823
["ID","MTS","AMOUNT","RATE_DAILY","PERIOD"]
[335607653,1724375450821,-1200.0,0.00018364,2]
[335607654,1724375450830,-1200.0,0.00018364,2]
[335607655,1724375450841,-1200.0,0.00018364,2]
[335607656,1724375450852,-1200.0,0.00018364,2]
[335607657,1724375450864,-1200.0,0.00018364,2]
[335607658,1724375450876,-1200.0,0.00018364,2]
[335607659,1724375450885,-1200.0,0.00018364,2]
[335607660,1724375450896,-1200.0,0.00018364,2]
[335607661,1724375450907,-1200.0,0.00018364,2]
[335607662,1724375450918,-1200.0,0.00018364,2]
[335607663,1724375450928,-1200.0,0.00018364,2]
[335607664,1724375450940,-1200.0,0.00018364,2]
[335607665,1724375450951,-1200.0,0.00018364,2]
[335607666,1724375450963,-1200.0,0.00018364,2]
[335607667,1724375450974,-1200.0,0.00018364,2]
[335607668,1724375450984,-1200.0,0.00018364,2]
[335607669,1724375450996,-1200.0,0.00018364,2]
[335607670,1724375451007,-1200.0,0.00018364,2]
[335607671,1724375451019,-1200.0,0.00018364,2]
[335607672,1724375451031,-1200.0,0.00018364,2]
[335607673,1724375451042,-1200.0,0.00018364,2]
[335607674,1724375451052,-1200.0,0.00018364,2]
[335607675,1724375451064,-1200.0,0.00018364,2]
[335607676,1724375451075,-1200.0,0.00018364,2]
[335607677,1724375451086,-1200.0,0.00018364,2]
[335607678,1724375451098,-284.80992724,0.00018364,2]
[335607679,1724375451899,-915.19007276,0.00018364,2]
[335607680,1724375451910,-1200.0,0.00018364,2]
[335607681,1724375451920,-1200.0,0.00018364,2]
[335607682,1724375451931,-1200.0,0.00018364,2]
[335607683,1724375451942,-1200.0,0.00018364,2]
[335607684,1724375451953,-1200.0,0.00018364,2]
[335607685,1724375451963,-1200.0,0.00018364,2]
[335607686,1724375451973,-1200.0,0.00018364,2]
[335607687,1724375451983,-1200.0,0.00018364,2]
[335607688,1724375451993,-1200.0,0.00018364,2]
[335607689,1724375452003,-1200.0,0.00018364,2]
[335607690,1724375452016,-1200.0,0.00018364,2]
[335607691,1724375452028,-1200.0,0.00018364,2]
[335607692,1724375452040,-1200.0,0.00018364,2]
[335607693,1724375452051,-1200.0,0.00018364,2]
[335607694,1724375452064,-1200.0,0.00018364,2]
[335607695,1724375452075,-1200.0,0.00018364,2]
[335607696,1724375452086,-1200.0,0.00018364,2]
[335607697,1724375452098,-1200.0,0.00018364,2]
[335607698,1724375452109,-1200.0,0.00018364,2]
[335607699,1724375452120,-1200.0,0.00018364,2]
[335607700,1724375452131,-1200.0,0.00018364,2]
[335607701,1724375452143,-1200.0,0.00018364,2]
[335607702,1724375452154,-1200.0,0.00018364,2]
[335607703,1724375452164,-1200.0,0.00018364,2]
[335607704,1724375452177,-1200.0,0.00018364,2]
[335607705,1724375452189,-1200.0,0.00018364,2]
[335607706,1724375452200,-1200.0,0.00018364,2]
[335607707,1724375452211,-1200.0,0.00018364,2]
[335607708,1724375452224,-1200.0,0.00018364,2]
[335607709,1724375452234,-1200.0,0.00018364,2]
[335607710,1724375452245,-1200.0,0.00018364,2]
[335607711,1724375452255,-1200.0,0.00018364,2]
[335607712,1724375452264,-1200.0,0.00018364,2]
[335607713,1724375452274,-1200.0,0.00018364,2]
[335607714,1724375452286,-1200.0,0.00018364,2]
[335607715,1724375452296,-1200.0,0.00018364,2]
[335607716,1724375452306,-1200.0,0.00018364,2]
[335607717,1724375452316,-1200.0,0.00018364,2]
[335607718,1724375452327,-1200.0,0.00018364,2]
[335607719,1724375452337,-1200.0,0.00018364,2]
[335607720,1724375452347,-1200.0,0.00018364,2]
[335607721,1724375452357,-1200.0,0.00018364,2]
[335607722,1724375452368,-1200.0,0.00018364,2]
[335607723,1724375452378,-1200.0,0.00018364,2]
[335607724,1724375452388,-1200.0,0.00018364,2]
[335607725,1724375452398,-1200.0,0.00018364,2]
[335607726,1724375452408,-1200.0,0.00018364,2]
[335607727,1724375452419,-1200.0,0.00018364,2]
[335607728,1724375452429,-1200.0,0.00018364,2]
[335607729,1724375452439,-1200.0,0.00018364,2]
[335607730,1724375452676,-1200.0,0.00018364,2]
[335607731,1724375452698,-1200.0,0.00018364,2]
[335607732,1724375452708,-1200.0,0.00018364,2]
[335607733,1724375452718,-1200.0,0.00018364,2]
[335607734,1724375452727,-1200.0,0.00018364,2]
[335607735,1724375452736,-1200.0,0.00018364,2]
[335607736,1724375452746,-1200.0,0.00018364,2]
[335607737,1724375452755,-1200.0,0.00018364,2]
[335607738,1724375452765,-1200.0,0.00018364,2]
[335607739,1724375452775,-288.809484,0.00018364,2]
[335607740,1724375452784,-572.961651,0.00018364,2]
[335607741,1724375452794,-572.961651,0.00018364,2]
[335607742,1724375452803,-151.0,0.00018364,2]
[335607743,1724375452813,-151.0,0.00018364,2]
[335607744,1724375452823,-151.0,0.00018364,2]
[335607745,1724375452832,-151.0,0.00018364,2]
[335607746,1724375452843,-151.0,0.00018364,2]
[335607747,1724375452853,-151.0,0.00018364,2]
[335607748,1724375452864,-297.6044,0.00018364,2]
[335607749,1724375452874,-297.6044,0.00018364,2]
[335607750,1724375452885,-693.285695,0.00018364,2]
[335607751,1724375452895,-693.285695,0.00018364,2]
[335607752,1724375452905,-871.036207,0.00018364,2]
[335607753,1724375452915,-871.036207,0.00018364,2]
[335607754,1724375452924,-3118.884995,0.00018364,2]
[335607755,1724375452934,-3118.884995,0.00018364,2]
[335607756,1724375452943,-169.687942,0.00018364,2]
[335607757,1724375452952,-169.687942,0.00018364,2]
[335607758,1724375452961,-423.3516,0.00018364,2]
[335607759,1724375452971,-423.3516,0.00018364,2]
[335607760,1724375452980,-151.0,0.00018364,2]
[335607761,1724375452990,-420.557636,0.00018364,2]
[335607762,1724375453000,-460.464154,0.00018364,2]
[335607763,1724375453010,-151.0,0.00018364,2]
[335607764,1724375453019,-420.557636,0.00018364,2]
[335607765,1724375453029,-922.710734,0.00018364,2]
[335607766,1724375453039,-460.464154,0.00018364,2]
[335607767,1724375453049,-922.710734,0.00018364,2]
[335607768,1724375453058,-151.0,0.00018364,2]
[335607769,1724375453068,-151.0,0.00018364,2]
[335607770,1724375453078,-995.947942,0.00018364,2]
[335607771,1724375453093,-995.947942,0.00018364,2]
[335607772,1724375453103,-151.0,0.00018364,2]
[335607773,1724375453113,-151.0,0.00018375,2]
[335607774,1724375453123,-186.529274,0.00018375,2]
[335607775,1724375453133,-186.529274,0.00018375,2]
[335607776,1724375453142,-347.702759,0.00018375,2]
[335607777,1724375453153,-56.21053042,0.00018375,2]
[335607778,1724375453762,-2015.877951,0.00018075,2]
[335607779,1724375453912,-147.95696652,0.00018075,2]
[335607780,1724375453923,-291.49222858,0.00018375,2]
[335607781,1724375453935,-151.0,0.00018375,2]
[335607782,1724375453947,-187.165268,0.00018375,2]
[335607783,1724375453958,-187.165268,0.00018375,2]
[335607784,1724375453969,-151.0,0.00018375,2]
[335607785,1724375453979,-151.0,0.00018375,2]
[335607786,1724375453990,-172.212549,0.00018375,2]
[335607787,1724375453999,-172.212549,0.00018375,2]
[335607788,1724375454009,-151.0,0.00018376,2]
[335607789,1724375454019,-151.0,0.00018376,2]
[335607790,1724375454028,-151.0,0.00018376,2]
[335607791,1724375454038,-229.19378,0.00018376,2]
[335607792,1724375454048,-229.19378,0.00018376,2]
[335607793,1724375454058,-445.588388,0.00018376,2]
[335607794,1724375454068,-445.588388,0.00018376,2]
[335607795,1724375454077,-151.0,0.00018376,2]
[335607796,1724375454087,-151.0,0.00018376,2]
[335607797,1724375454096,-572.961651,0.00018376,2]
[335607798,1724375454106,-572.961651,0.00018376,2]
[335607799,1724375454115,-151.0,0.00018376,2]
[335607800,1724375454125,-151.0,0.00018376,2]
[335607801,1724375454134,-151.0,0.00018376,2]
[335607802,1724375454143,-151.0,0.00018376,2]
[335607803,1724375454153,-151.0,0.00018376,2]
[335607804,1724375454162,-151.0,0.00018376,2]
[335607805,1724375454172,-2297.54265699,0.00018376,2]
[335607818,1724376384228,194.2,0.00010959,2]
[335607820,1724376425142,-1308.44770761,0.00013283,2]
[335607821,1724376425165,-190.603825,0.00014247,2]
[335607822,1724376425188,-257.735904,0.00014247,2]
[335607823,1724376425210,-1731.06793404,0.00018052,2]
[335607824,1724376425232,-300.0,0.00018062,2]
[335607825,1724376425259,-12326.4525602,0.00018063,2]
[335607826,1724376425282,-598.82,0.00018071,2]
[335607827,1724376425303,-500.0,0.00018071,2]
[335607828,1724376425325,-1562.54,0.00018071,2]
[335607829,1724376425346,-500.0,0.00018071,2]
[335607830,1724376425368,-654.95,0.00018071,2]
[335607831,1724376425390,-40.10105187,0.00018071,2]
[335607844,1724376593580,263.05328288,0.00014519,7]
[335607916,1724376638156,-376.54229165,0.00012999,3]
[335607969,1724376646245,-146.90985212,0.00012999,3]
[335607970,1724376646256,-196.86784155,0.00013698,2]
[335607971,1724376646266,-5210.41094129,0.00014245,2]
[335607972,1724376646277,-809.32192277,0.00014519,2]
[335607973,1724376646289,-1384.85434724,0.00017973,2]
[335607974,1724376646300,-500.0,0.00017998,2]
[335607975,1724376646309,-500.0,0.00017998,2]
[335607976,1724376646319,-500.0,0.00017998,2]
[335607977,1724376646329,-500.0,0.00017998,2]
[335607978,1724376646339,-500.0,0.00017998,2]
[335607979,1724376646349,-500.0,0.00017998,2]
[335607980,1724376646359,-500.0,0.00017998,2]
[335607981,1724376646369,-500.0,0.00017998,2]
[335607982,1724376646379,-506.2396318,0.00017998,2]
[335607983,1724376646389,-500.0,0.00017998,2]
[335607984,1724376646398,-500.0,0.00017998,2]
[335607985,1724376646409,-500.0,0.00017998,2]
[335607986,1724376646419,-676.90406178,0.00017999,2]
[335607999,1724377005809,452.0,0.00027,120]
[335608006,1724377463534,-154.96176066,0.00013051,2]
[335608010,1724377647166,-281.647102,0.00014247,2]
[335608011,1724377647189,-1111.52616931,0.00017208,2]
[335608012,1724377647211,-4757.86077539,0.00017738,2]
[335608013,1724377647235,-2037.08645269,0.00017889,2]
[335608014,1724377647257,-1116.05284308,0.00017895,2]
[335608015,1724377647278,-206.00287482,0.00017898,9]
[335608016,1724377647302,-49204.96855654,0.00017898,2]
[335608017,1724377647327,-207.6636928,0.000179,2]
[335608018,1724377647351,-1116.05284306,0.00017962,2]
[335608019,1724377647372,-300.85008459,0.00017973,2]
[335608020,1724377647399,-13307.1783914,0.00017986,2]
[335608021,1724377647420,-500.0,0.00017987,2]
[335608022,1724377647442,-500.0,0.00017987,2]
[335608023,1724377647464,-542.53,0.00017987,2]
[335608024,1724377647488,-1521.64,0.00017987,2]
[335608025,1724377647509,-500.0,0.00017987,2]
[335608026,1724377647529,-500.0,0.00017987,2]
[335608027,1724377647549,-500.0,0.00017987,2]
[335608028,1724377647571,-500.0,0.00017987,2]
[335608029,1724377647591,-500.0,0.00017987,2]
[335608030,1724377647611,-500.0,0.00017987,2]
[335608031,1724377647632,-500.0,0.00017987,2]
[335608032,1724377647654,-4817.91,0.00017987,2]
[335608033,1724377647678,-628.93,0.00017987,2]
[335608034,1724377647698,-500.0,0.00017987,2]
[335608035,1724377647718,-500.0,0.00017987,2]
[335608036,1724377647739,-500.0,0.00017987,2]
[335608037,1724377647767,-643.5,0.00017987,2]
[335608038,1724377647787,-500.0,0.00017987,2]
[335608039,1724377648019,-500.0,0.00017987,2]
[335608040,1724377648041,-500.0,0.00017987,2]
[335608041,1724377648061,-500.0,0.00017987,2]
[335608042,1724377648086,-211.83120561,0.00017987,2]
[335608043,1724377648107,-694.38,0.00017987,2]
[335608044,1724377648128,-781.04,0.00017987,2]
[335608045,1724377648150,-781.09,0.00017987,2]
[335608046,1724377648171,-500.0,0.00017987,2]
[335608047,1724377648191,-500.0,0.00017987,2]
[335608048,1724377648211,-3443.04,0.00017987,2]
[335608049,1724377648231,-500.0,0.00017987,2]
[335608050,1724377648251,-500.0,0.00017987,2]
[335608051,1724377648273,-500.0,0.00017987,2]
[335608052,1724377648294,-500.0,0.00017987,2]
[335608053,1724377648314,-761.55,0.00017987,2]
[335608054,1724377648335,-500.0,0.00017987,2]
[335608055,1724377648357,-500.0,0.00017987,2]
[335608056,1724377648378,-350.4633614,0.00017987,2]
[335608057,1724377648404,-537.86,0.00017987,2]
[335608058,1724377648426,-500.0,0.00017987,2]
[335608059,1724377648447,-2457.88,0.00017987,2]
[335608060,1724377648469,-491.36979805,0.00017987,2]
[335608061,1724377648493,-500.0,0.00017987,2]
[335608062,1724377648514,-500.0,0.00017987,2]
[335608063,1724377648536,-500.0,0.00017987,2]
[335608064,1724377648556,-500.0,0.00017987,2]
[335608065,1724377648577,-500.0,0.00017987,2]
[335608066,1724377648598,-500.0,0.00017987,2]
[335608067,1724377648619,-801.84,0.00017987,2]
[335608068,1724377648642,-200.0,0.00017987,2]
[335608069,1724377648663,-500.0,0.00017987,2]
[335608070,1724377648683,-500.0,0.00017987,2]
[335608071,1724377648704,-2667.8,0.00017987,2]
[335608072,1724377648727,-500.0,0.00017987,2]
[335608073,1724377648754,-2000.09,0.00017987,2]
[335608074,1724377648774,-500.0,0.00017987,2]
[335608075,1724377648796,-500.0,0.00017987,2]
[335608076,1724377648818,-1112.86,0.00017987,2]
[335608077,1724377648842,-19481.42293258,0.00017988,2]
[335608164,1724377838170,-1651.52201535,0.00017887,2]
[335608342,1724377843260,-130.92863078,0.00017887,2]
[335608343,1724377843270,-633.03291055,0.00017889,2]
[335608363,1724377846475,-36.59879531,0.00017889,2]
[335608364,1724377846489,-553.54,0.00017897,2]
[335608365,1724377846500,-519.93,0.00017897,2]
[335608367,1724377846511,-1458.24,0.00017897,2]
[335608369,1724377846521,-500.0,0.00017897,2]
[335608370,1724377846531,-500.0,0.00017897,2]
[335608371,1724377846541,-2810.44,0.00017897,2]
[335608372,1724377846552,-602.73,0.00017897,2]
[335608373,1724377846562,-616.69,0.00017897,2]
[335608374,1724377846573,-500.0,0.00017897,2]
[335608375,1724377846583,-665.45,0.00017897,2]
[335608376,1724377846593,-748.54,0.00017897,2]
[335608377,1724377846603,-3299.58,0.00017897,2]
[335608378,1724377846612,-729.82,0.00017897,2]
[335608379,1724377846622,-500.0,0.00017897,2]
[335608380,1724377846632,-2355.47,0.00017897,2]
[335608381,1724377846642,-227.08336937,0.00017898,2]
[335608382,1724377846653,-1789.92564389,0.000179,2]
[335608383,1724377846664,-669.63170583,0.00017955,2]
[335608384,1724377846675,-18696.58788648,0.0001798,2]
[335608385,1724377846687,-11667.7483252,0.00017985,2]
[335608386,1724377846700,-23335.4966503,0.00017986,2]
[335608387,1724377846711,-500.0,0.00017986,2]
[335608388,1724377846723,-500.0,0.00017986,2]
[335608389,1724377846733,-500.0,0.00017986,2]
[335608390,1724377846744,-500.0,0.00017986,2]
[335608391,1724377846753,-2095.41,0.00017986,2]
[335608392,1724377846764,-500.0,0.00017987,2]
[335608393,1724377846773,-500.0,0.00017987,2]
[335608394,1724377846783,-500.0,0.00017987,2]
[335608395,1724377846794,-500.0,0.00017987,2]
[335608396,1724377846805,-500.0,0.00017987,2]
[335608397,1724377846815,-3608.21,0.00017987,2]
[335608398,1724377846825,-500.0,0.00017987,2]
[335608399,1724377846836,-500.0,0.00017987,2]
[335608400,1724377846848,-263.63374815,0.00017987,2]
[335608401,1724377846859,-500.0,0.00017987,2]
[335608402,1724377846870,-500.0,0.00017987,2]
[335608403,1724377846882,-500.0,0.00017987,2]
[335608404,1724377846893,-500.0,0.00017987,2]
[335608405,1724377846904,-500.0,0.00017987,2]
[335608406,1724377846915,-500.0,0.00017987,2]
[335608407,1724377846927,-1645.22,0.00017987,2]
[335608408,1724377846938,-500.0,0.00017987,2]
[335608409,1724377846949,-500.0,0.00017987,2]
[335608410,1724377846961,-500.0,0.00017987,2]
[335608411,1724377846973,-509.56,0.00017987,2]
[335608412,1724377846983,-538.16,0.00017987,2]
[335608413,1724377846993,-500.0,0.00017987,2]
[335608414,1724377847003,-500.0,0.00017987,2]
[335608415,1724377847015,-500.0,0.00017987,2]
[335608416,1724377847025,-500.0,0.00017987,2]
[335608417,1724377847036,-500.0,0.00017987,2]
[335608418,1724377847045,-524.78029342,0.00017987,2]
[335608419,1724377847055,-500.0,0.00017987,2]
[335608420,1724377847064,-1261.47,0.00017987,2]
[335608421,1724377847074,-1448.05,0.00017987,2]
[335608422,1724377847086,-500.0,0.00017987,2]
[335608423,1724377847099,-500.0,0.00017987,2]
[335608424,1724377847110,-500.0,0.00017987,2]
[335608425,1724377847121,-510.31003726,0.00017987,2]
[335608426,1724377847132,-500.0,0.00017987,2]
[335608427,1724377847143,-500.0,0.00017987,2]
[335608428,1724377847152,-500.0,0.00017987,2]
[335608429,1724377847163,-917.66,0.00017987,2]
[335608430,1724377847175,-740.31,0.00017987,2]
[335608431,1724377847185,-500.0,0.00017987,2]
[335608432,1724377847195,-500.0,0.00017987,2]
[335608433,1724377847205,-734.13,0.00017987,2]
[335608434,1724377847214,-500.0,0.00017987,2]
[335608435,1724377847225,-500.0,0.00017987,2]
[335608436,1724377847234,-558.71,0.00017987,2]
[335608437,1724377847246,-500.0,0.00017987,2]
[335608438,1724377847268,-500.0,0.00017987,2]
[335608439,1724377847279,-1154.12,0.00017987,2]
[335608440,1724377847291,-500.0,0.00017987,2]
[335608441,1724377847300,-500.0,0.00017987,2]
[335608442,1724377847311,-500.0,0.00017987,2]
[335608443,1724377847322,-500.0,0.00017987,2]
[335608444,1724377847334,-500.0,0.00017987,2]
[335608445,1724377847345,-500.0,0.00017987,2]
[335608446,1724377847355,-683.61,0.00017987,2]
[335608447,1724377847366,-500.0,0.00017987,2]
[335608448,1724377847376,-500.0,0.00017987,2]
[335608449,1724377847387,-1636.15,0.00017987,2]
[335608450,1724377847400,-500.0,0.00017987,2]
[335608451,1724377847411,-500.0,0.00017987,2]
[335608452,1724377847422,-500.0,0.00017987,2]
[335608453,1724377847433,-500.0,0.00017987,2]
[335608454,1724377847443,-500.0,0.00017987,2]
[335608455,1724377847454,-500.0,0.00017987,2]
[335608456,1724377847465,-500.0,0.00017987,2]
[335608457,1724377847475,-500.0,0.00017987,2]
[335608458,1724377847488,-500.0,0.00017987,2]
[335608459,1724377847499,-542.76,0.00017987,2]
[335608460,1724377847509,-500.0,0.00017987,2]
[335608461,1724377847518,-500.0,0.00017987,2]
[335608462,1724377847529,-500.0,0.00017987,2]
[335608463,1724377847539,-500.0,0.00017987,2]
[335608464,1724377847548,-685.72,0.00017987,2]
[335608465,1724377847561,-500.0,0.00017987,2]
[335608466,1724377847571,-500.0,0.00017987,2]
[335608467,1724377847582,-500.0,0.00017987,2]
[335608468,1724377847595,-500.0,0.00017987,2]
[335608469,1724377847606,-500.0,0.00017987,2]
[335608470,1724377847617,-500.0,0.00017987,2]
[335608471,1724377847628,-500.0,0.00017987,2]
[335608472,1724377847639,-500.0,0.00017987,2]
[335608473,1724377847651,-500.0,0.00017987,2]
[335608474,1724377847666,-1478.79,0.00017987,2]
[335608475,1724377847676,-500.0,0.00017987,2]
[335608476,1724377847688,-500.0,0.00017987,2]
[335608477,1724377847699,-500.0,0.00017987,2]
[335608478,1724377847710,-385.6792986,0.00017987,2]
[335608479,1724377848323,-115.53843507,0.00017987,2]
[335608480,1724377848335,-500.0,0.00017987,2]
[335608481,1724377848344,-500.0,0.00017987,2]
[335608482,1724377848354,-500.0,0.00017987,2]
[335608483,1724377848367,-500.0,0.00017987,2]
[335608484,1724377848379,-1044.3,0.00017987,2]
[335608485,1724377848390,-500.0,0.00017987,2]
[335608486,1724377848400,-500.0,0.00017987,2]
[335608487,1724377848412,-206.00287482,0.00017988,9]
[335608488,1724377848425,-25890.82935107,0.00017988,2]
[335608503,1724378255662,184.77408401,0.00014519,7]
[335608507,1724378528020,6885.03,0.00025,60]
[335608516,1724378836139,-267.564746,0.00014247,2]
[335608517,1724378836161,-235.0766258,0.00016913,2]
[335608518,1724378836182,-4757.8607754,0.00017614,2]
[335608519,1724378836202,-443.21100767,0.00017886,2]
[335608520,1724378836222,-8851.49313342,0.00017898,2]
[335608682,1724379038435,-354.56880612,0.00017884,2]
[335608684,1724379038446,-363.19366063,0.00017898,2]
[335608686,1724379038458,-1132.46856645,0.00017898,2]
[335608688,1724379038468,-137.24620786,0.00017898,2]
[335608689,1724379038597,-1643.61280195,0.00017898,2]
[335608690,1724379038608,-354.56880612,0.00017951,2]
[335608691,1724379038618,-500.0,0.00017973,2]
[335608692,1724379038633,-500.0,0.00017973,2]
[335608694,1724379038644,-2779.21139779,0.00017974,2]
[335608713,1724379046680,-10197.63422666,0.00017974,2]
[335608746,1724380030148,-254.186508,0.00014247,2]
[335608747,1724380030171,-277.76886237,0.00017208,2]
[335608748,1724380030193,-277.76886237,0.00017208,2]
[335608749,1724380030214,-5190.56248496,0.00017783,2]
[335608750,1724380030235,-212.74128368,0.00017854,2]
[335608751,1724380030256,-212.74128367,0.00017859,2]
[335608752,1724380030277,-212.74128367,0.00017864,2]
[335608753,1724380030300,-1801.56248976,0.00017864,2]
[335608754,1724380030323,-2000.0,0.00017864,2]
[335608755,1724380030345,-212.74128367,0.00017869,2]
[335608756,1724380030368,-300.0,0.00017873,2]
[335608757,1724380030392,-212.74128367,0.00017874,2]
[335608758,1724380030413,-183.30308029,0.00017885,9]
[335608759,1724380030436,-500.0,0.00017885,2]
[335608760,1724380030458,-500.0,0.00017885,2]
[335608761,1724380030479,-500.0,0.00017885,2]
[335608762,1724380030500,-500.0,0.00017885,2]
[335608763,1724380030523,-500.0,0.00017885,2]
[335608764,1724380030545,-500.0,0.00017885,2]
[335608765,1724380030566,-238.68484419,0.00017885,2]
[335608766,1724380030589,-1544.0,0.00017885,2]
[335608767,1724380030612,-500.0,0.00017885,2]
[335608768,1724380030635,-508.04609411,0.00017885,2]
[335608769,1724380030658,-603.99,0.00017885,2]
[335608770,1724380030681,-837.23,0.00017885,2]
[335608771,1724380030703,-768.43,0.00017885,2]
[335608772,1724380030725,-500.0,0.00017885,2]
[335608773,1724380030746,-2003.39,0.00017885,2]
[335608774,1724380030766,-918.7,0.00017885,2]
[335608775,1724380030798,-567.63,0.00017885,2]
[335608776,1724380030820,-3614.3,0.00017885,2]
[335608777,1724380030841,-708.45,0.00017885,2]
[335608778,1724380030862,-500.0,0.00017885,2]
[335608779,1724380030882,-500.0,0.00017885,2]
[335608780,1724380030905,-500.0,0.00017885,2]
[335608781,1724380030925,-501.52749267,0.00017885,2]
[335608782,1724380030946,-500.0,0.00017885,2]
[335608783,1724380030966,-500.0,0.00017885,2]
[335608784,1724380030987,-539.05,0.00017885,2]
[335608785,1724380031009,-556.52,0.00017885,2]
[335608786,1724380031035,-500.0,0.00017885,2]
[335608787,1724380031057,-500.0,0.00017885,2]
[335608788,1724380031079,-518.2226124,0.00017885,2]
[335608789,1724380031103,-500.0,0.00017885,2]
[335608790,1724380031128,-500.0,0.00017885,2]
[335608791,1724380031151,-509.34574247,0.00017885,2]
[335608792,1724380031175,-500.0,0.00017885,2]
[335608793,1724380031200,-1450.6,0.00017885,2]
[335608794,1724380031226,-519.35,0.00017885,2]
[335608795,1724380031251,-500.0,0.00017885,2]
[335608796,1724380031274,-500.0,0.00017885,2]
[335608797,1724380031307,-500.0,0.00017885,2]
[335608798,1724380031329,-500.0,0.00017885,2]
[335608799,1724380031353,-1465.42,0.00017885,2]
[335608800,1724380031375,-500.0,0.00017885,2]
[335608801,1724380031398,-500.0,0.00017885,2]
[335608802,1724380031420,-741.62,0.00017885,2]
[335608803,1724380031444,-500.0,0.00017885,2]
[335608804,1724380031468,-775.73,0.00017885,2]
[335608805,1724380031491,-500.0,0.00017885,2]
[335608806,1724380031516,-1000.0,0.00017885,2]
[335608807,1724380031538,-500.0,0.00017885,2]
[335608808,1724380031563,-500.0,0.00017885,2]
[335608809,1724380031585,-606.09,0.00017885,2]
[335608810,1724380031609,-500.0,0.00017885,2]
[335608811,1724380031633,-500.0,0.00017885,2]
[335608812,1724380031657,-500.0,0.00017885,2]
[335608813,1724380031681,-4708.77,0.00017885,2]
[335608814,1724380031703,-500.73801096,0.00017885,2]
[335608815,1724380031725,-500.0,0.00017885,2]
[335608816,1724380031748,-500.0,0.00017885,2]
[335608817,1724380031772,-174.46166246,0.00017885,2]
[335608818,1724380031797,-618.92,0.00017885,2]
[335608819,1724380031820,-180.8489016,0.00017885,2]
[335608850,1724380180621,263.90893523,0.00014519,2]
[335608851,1724380180643,237.88500833,0.00014519,2]
[335608852,1724380180663,175.00927233,0.00014519,2]
[335608853,1724380196211,35.80574733,0.00014519,2]
[335608883,1724380238715,-630.53853378,0.00014245,2]
[335608884,1724380238724,-156.27486542,0.00014519,2]
[335608885,1724380238735,-465.96954239,0.00014519,2]
[335608886,1724380238744,-1398.24087341,0.00016886,2]
[335608887,1724380238822,-154.96244623,0.00014519,2]
[335608888,1724380238831,-582.56228989,0.00016886,2]
[335608889,1724380238841,-181.68851049,0.00017843,2]
[335608890,1724380238851,-2000.0,0.00017844,2]
[335608891,1724380238860,-533.33,0.00017884,2]
[335608892,1724380238870,-500.0,0.00017884,2]
[335608893,1724380238879,-500.0,0.00017884,2]
[335608894,1724380238888,-1404.36,0.00017884,2]
[335608895,1724380238897,-500.0,0.00017884,2]
[335608896,1724380238907,-500.0,0.00017884,2]
[335608897,1724380238916,-580.84,0.00017884,2]
[335608898,1724380238925,-4512.57,0.00017884,2]
[335608899,1724380238934,-477.50431862,0.00017884,2]
[335608900,1724380238945,-593.14,0.00017884,2]
[335608901,1724380238954,-667.85,0.00017884,2]
[335608902,1724380238963,-751.27,0.00017884,2]
[335608903,1724380238972,-3311.5,0.00017884,2]
[335608904,1724380238982,-732.49,0.00017884,2]